[Event "Titled Tuesday Blitz May 31 Early 2022"]
[White "Tymrakiewicz, Rafal"]
[Black "Dinu, Dumitru-Daniel"]
[WhiteFideId "1108832"]
[BlackFideId "1208403"]
[WhiteElo "2205"]
[BlackElo "2240"]
[Result "1-0"]
[Round "07"]
[TimeControl "180+1"]
[Date "2022.06.01"]
[WhiteClock "0:00:06"]
[BlackClock "0:00:13"]

1. d4 {[%clk 0:02:56]}  Nf6 {[%clk 0:02:59]} 2. Bg5 {[%clk 0:02:55]}  c6 {[%clk 0:02:58]} 3. Nd2 {[%clk 0:02:51]}  d5 {[%clk 0:02:57]} 4. e3 {[%clk 0:02:49]}  Bf5 {[%clk 0:02:57]} 5. Bd3 {[%clk 0:02:49]}  Bxd3 {[%clk 0:02:56]} 6. cxd3 {[%clk 0:02:50]}  e6 {[%clk 0:02:55]} 7. f4 {[%clk 0:02:50]}  h6 {[%clk 0:02:52]} 8. Bh4 {[%clk 0:02:49]}  Nbd7 {[%clk 0:02:50]} 9. Ngf3 {[%clk 0:02:49]}  Rc8 {[%clk 0:02:47]} 10. O-O {[%clk 0:02:48]}  Qb6 {[%clk 0:02:46]} 11. Qb3 {[%clk 0:02:47]}  Ng4 {[%clk 0:02:38]} 12. Bf2 {[%clk 0:02:43]}  Nxf2 {[%clk 0:02:34]} 13. Kxf2 {[%clk 0:02:43]}  c5 {[%clk 0:02:35]} 14. Qxb6 {[%clk 0:02:38]}  axb6 {[%clk 0:02:31]} 15. Rfc1 {[%clk 0:02:37]}  Bd6 {[%clk 0:02:27]} 16. Rc3 {[%clk 0:02:32]}  Ke7 {[%clk 0:02:24]} 17. Rac1 {[%clk 0:02:32]}  Ra8 {[%clk 0:02:21]} 18. a3 {[%clk 0:02:26]}  f6 {[%clk 0:02:14]} 19. Rb3 {[%clk 0:01:46]}  Ra6 {[%clk 0:01:55]} 20. Rb5 {[%clk 0:01:46]}  e5 {[%clk 0:01:49]} 21. fxe5 {[%clk 0:01:31]}  fxe5 {[%clk 0:01:49]} 22. dxc5 {[%clk 0:01:32]}  Nxc5 {[%clk 0:01:49]} 23. Ke2 {[%clk 0:01:32]}  Rf8 {[%clk 0:01:37]} 24. d4 {[%clk 0:01:27]}  exd4 {[%clk 0:01:19]} 25. exd4 {[%clk 0:01:27]}  Na4 {[%clk 0:01:18]} 26. g3 {[%clk 0:01:17]}  Ke6 {[%clk 0:01:12]} 27. Ne5 {[%clk 0:01:11]}  Ra5 {[%clk 0:00:59]} 28. Rb3 {[%clk 0:01:02]}  Bxe5 {[%clk 0:00:49]} 29. dxe5 {[%clk 0:01:02]}  Kxe5 {[%clk 0:00:46]} 30. Rc7 {[%clk 0:01:02]}  g5 {[%clk 0:00:27]} 31. Rh7 {[%clk 0:00:56]}  Rf6 {[%clk 0:00:25]} 32. Nf3+ {[%clk 0:00:36]}  Kd6 {[%clk 0:00:21]} 33. Nd4 {[%clk 0:00:36]}  Kc5 {[%clk 0:00:19]} 34. Kd3 {[%clk 0:00:22]}  Rf1 {[%clk 0:00:18]} 35. Ne6+ {[%clk 0:00:15]}  Kd6 {[%clk 0:00:18]} 36. Nd8 {[%clk 0:00:14]}  Nc5+ {[%clk 0:00:17]} 37. Ke2 {[%clk 0:00:12]}  Nxb3 {[%clk 0:00:15]} 38. Nxb7+ {[%clk 0:00:12]}  Ke5 {[%clk 0:00:14]} 39. Nxa5 {[%clk 0:00:13]}  Rb1 {[%clk 0:00:13]} 40. Nxb3 {[%clk 0:00:12]}  Rxb2+ {[%clk 0:00:14]} 41. Nd2 {[%clk 0:00:13]}  Ra2 {[%clk 0:00:12]} 42. Rxh6 {[%clk 0:00:12]}  Rxa3 {[%clk 0:00:12]} 43. Rxb6 {[%clk 0:00:12]}  Ra2 {[%clk 0:00:13]} 44. Kd3 {[%clk 0:00:11]}  Ra3+ {[%clk 0:00:13]} 45. Nb3 {[%clk 0:00:11]}  Ra2 {[%clk 0:00:13]} 46. Nd2 {[%clk 0:00:10]}  Ra3+ {[%clk 0:00:13]} 47. Rb3 {[%clk 0:00:11]}  Ra1 {[%clk 0:00:13]} 48. Ke3 {[%clk 0:00:05]}  Rh1 {[%clk 0:00:10]} 49. Nf3+ {[%clk 0:00:05]}  Kd6 {[%clk 0:00:10]} 50. Rb6+ {[%clk 0:00:05]}  Kc5 {[%clk 0:00:10]} 51. Rg6 {[%clk 0:00:05]}  d4+ {[%clk 0:00:09]} 52. Ke4 {[%clk 0:00:05]}  Kc4 {[%clk 0:00:06]} 53. Rc6+ {[%clk 0:00:05]}  Kb5 {[%clk 0:00:07]} 54. Rc2 {[%clk 0:00:04]}  d3 {[%clk 0:00:04]} 55. Kxd3 {[%clk 0:00:03]}  g4 {[%clk 0:00:04]} 56. Nd4+ {[%clk 0:00:03]}  Kb4 {[%clk 0:00:04]} 57. Rb2+ {[%clk 0:00:04]}  Ka3 {[%clk 0:00:04]} 58. Rb3+ {[%clk 0:00:03]}  Ka2 {[%clk 0:00:05]} 59. Rb4 {[%clk 0:00:01]}  Ka1 {[%clk 0:00:05]} 60. Ne2 {[%clk 0:00:01]}  Rd1+ {[%clk 0:00:05]} 61. Ke3 {[%clk 0:00:01]}  Re1 {[%clk 0:00:05]} 62. Rxg4 {[%clk 0:00:02]}  Rh1 {[%clk 0:00:05]} 63. h4 {[%clk 0:00:02]}  Rh2 {[%clk 0:00:05]} 64. Ra4+ {[%clk 0:00:02]}  Kb1 {[%clk 0:00:05]} 65. Rc4 {[%clk 0:00:03]}  Ka2 {[%clk 0:00:06]} 66. Rc8 {[%clk 0:00:03]}  Kb2 {[%clk 0:00:06]} 67. Kf3 {[%clk 0:00:03]}  Ka2 {[%clk 0:00:06]} 68. Nf4 {[%clk 0:00:03]}  Ka1 {[%clk 0:00:07]} 69. h5 {[%clk 0:00:03]}  Rh1 {[%clk 0:00:06]} 70. Kg4 {[%clk 0:00:04]}  Rf1 {[%clk 0:00:07]} 71. Kg5 {[%clk 0:00:04]}  Rh1 {[%clk 0:00:08]} 72. g4 {[%clk 0:00:04]}  Rh3 {[%clk 0:00:08]} 73. h6 {[%clk 0:00:05]}  Rh1 {[%clk 0:00:08]} 74. Kg6 {[%clk 0:00:05]}  Rh3 {[%clk 0:00:08]} 75. g5 {[%clk 0:00:05]}  Rh2 {[%clk 0:00:09]} 76. Nh5 {[%clk 0:00:06]}  Rf2 {[%clk 0:00:09]} 77. Nf6 {[%clk 0:00:05]}  Rc2 {[%clk 0:00:09]} 78. h7 {[%clk 0:00:05]}  Rxc8 {[%clk 0:00:09]} 79. Kg7 {[%clk 0:00:05]}  Rc7+ {[%clk 0:00:09]} 80. Kh6 {[%clk 0:00:05]}  Rc8 {[%clk 0:00:09]} 81. Ng8 {[%clk 0:00:05]}  Rc6+ {[%clk 0:00:09]} 82. g6 {[%clk 0:00:04]}  Rc1 {[%clk 0:00:09]} 83. h8=Q+ {[%clk 0:00:05]}  Kb1 {[%clk 0:00:08]} 84. Kg7 {[%clk 0:00:05]}  Rc7+ {[%clk 0:00:08]} 85. Kf6 {[%clk 0:00:06]}  Rc6+ {[%clk 0:00:08]} 86. Kf7 {[%clk 0:00:06]}  Rc7+ {[%clk 0:00:08]} 87. Ne7 {[%clk 0:00:07]}  Rc1 {[%clk 0:00:09]} 88. Qh6 {[%clk 0:00:06]}  Rf1+ {[%clk 0:00:09]} 89. Ke6 {[%clk 0:00:07]}  Re1+ {[%clk 0:00:09]} 90. Kf6 {[%clk 0:00:07]}  Rf1+ {[%clk 0:00:10]} 91. Nf5 {[%clk 0:00:08]}  Re1 {[%clk 0:00:10]} 92. Qh2 {[%clk 0:00:08]}  Ka1 {[%clk 0:00:10]} 93. Qc7 {[%clk 0:00:07]}  Rb1 {[%clk 0:00:10]} 94. Qa5+ {[%clk 0:00:07]}  Kb2 {[%clk 0:00:10]} 95. Qb4+ {[%clk 0:00:07]}  Ka2 {[%clk 0:00:10]} 96. Qxb1+ {[%clk 0:00:08]}  Kxb1 {[%clk 0:00:11]} 97. g7 {[%clk 0:00:09]}  Ka2 {[%clk 0:00:12]} 98. g8=Q+ {[%clk 0:00:10]}  Ka1 {[%clk 0:00:12]} 99. Qb8 {[%clk 0:00:10]}  Ka2 {[%clk 0:00:12]} 100. Ne3 {[%clk 0:00:10]}  Ka1 {[%clk 0:00:12]} 101. Nc4 {[%clk 0:00:10]}  Ka2 {[%clk 0:00:13]} 102. Qb2# {[%clk 0:00:06]} 1-0


[Site "https://www.chess.com"]

[Event "Titled Tuesday Blitz May 31 Early 2022"]
[White "Vinod, Kumar Sharma"]
[Black "Maevsky, Nikolay"]
[WhiteFideId "5013518"]
[BlackFideId "4198220"]
[WhiteElo "2154"]
[BlackElo "2149"]
[Result "1-0"]
[Round "07"]
[TimeControl "180+1"]
[Date "2022.06.01"]
[WhiteClock "0:00:10"]
[BlackClock "0:00:12"]

1. e4 {[%clk 0:03:00]}  e5 {[%clk 0:02:59]} 2. Nf3 {[%clk 0:02:56]}  Nf6 {[%clk 0:02:59]} 3. Nxe5 {[%clk 0:02:53]}  Nc6 {[%clk 0:02:58]} 4. Nxc6 {[%clk 0:02:43]}  dxc6 {[%clk 0:02:59]} 5. f3 {[%clk 0:02:26]}  Nh5 {[%clk 0:02:59]} 6. g3 {[%clk 0:02:15]}  Bd6 {[%clk 0:02:59]} 7. d4 {[%clk 0:02:01]}  O-O {[%clk 0:02:50]} 8. Bg2 {[%clk 0:01:35]}  f5 {[%clk 0:02:46]} 9. e5 {[%clk 0:01:29]}  Be7 {[%clk 0:02:44]} 10. f4 {[%clk 0:01:22]}  g6 {[%clk 0:02:44]} 11. Be3 {[%clk 0:01:12]}  Be6 {[%clk 0:02:44]} 12. Qe2 {[%clk 0:01:05]}  Ng7 {[%clk 0:02:29]} 13. c4 {[%clk 0:00:57]}  Qd7 {[%clk 0:02:27]} 14. Nc3 {[%clk 0:00:52]}  Bb4 {[%clk 0:02:25]} 15. d5 {[%clk 0:00:41]}  cxd5 {[%clk 0:02:22]} 16. cxd5 {[%clk 0:00:35]}  Bxd5 {[%clk 0:02:05]} 17. O-O-O {[%clk 0:00:33]}  c6 {[%clk 0:02:00]} 18. Nxd5 {[%clk 0:00:28]}  cxd5 {[%clk 0:01:58]} 19. Rxd5 {[%clk 0:00:20]}  Rac8+ {[%clk 0:01:52]} 20. Kb1 {[%clk 0:00:20]}  Qa4 {[%clk 0:01:44]} 21. Rd4 {[%clk 0:00:19]}  Qa5 {[%clk 0:01:34]} 22. Rd7 {[%clk 0:00:17]}  b6 {[%clk 0:01:22]} 23. Rhd1 {[%clk 0:00:15]}  Kh8 {[%clk 0:01:19]} 24. Qd3 {[%clk 0:00:09]}  Ne6 {[%clk 0:01:04]} 25. Qd5 {[%clk 0:00:09]}  Qxd5 {[%clk 0:00:54]} 26. Bxd5 {[%clk 0:00:08]}  Nc7 {[%clk 0:00:46]} 27. Bb3 {[%clk 0:00:07]}  Rfe8 {[%clk 0:00:39]} 28. e6 {[%clk 0:00:07]}  Be7 {[%clk 0:00:36]} 29. Bd4+ {[%clk 0:00:06]}  Kg8 {[%clk 0:00:36]} 30. Be5 {[%clk 0:00:06]}  Na6 {[%clk 0:00:32]} 31. Rxa7 {[%clk 0:00:05]}  Nc5 {[%clk 0:00:32]} 32. Rdd7 {[%clk 0:00:05]}  Kf8 {[%clk 0:00:25]} 33. Rxe7 {[%clk 0:00:04]}  Rxe7 {[%clk 0:00:25]} 34. Bd6 {[%clk 0:00:04]}  Re8 {[%clk 0:00:23]} 35. Bd5 {[%clk 0:00:05]}  g5 {[%clk 0:00:11]} 36. Bc6 {[%clk 0:00:03]}  Kg7 {[%clk 0:00:07]} 37. Bxe7 {[%clk 0:00:02]}  Rc8 {[%clk 0:00:04]} 38. Bxc5+ {[%clk 0:00:03]}  Kg6 {[%clk 0:00:05]} 39. e7 {[%clk 0:00:04]}  bxc5 {[%clk 0:00:04]} 40. e8=Q+ {[%clk 0:00:05]}  Rxe8 {[%clk 0:00:05]} 41. Bxe8+ {[%clk 0:00:05]}  Kf6 {[%clk 0:00:06]} 42. Rf7+ {[%clk 0:00:06]}  Ke6 {[%clk 0:00:05]} 43. fxg5 {[%clk 0:00:07]}  f4 {[%clk 0:00:05]} 44. h4 {[%clk 0:00:07]}  fxg3 {[%clk 0:00:05]} 45. Rf3 {[%clk 0:00:08]}  g2 {[%clk 0:00:05]} 46. Rg3 {[%clk 0:00:08]}  Ke7 {[%clk 0:00:06]} 47. Bh5 {[%clk 0:00:08]}  g1=Q+ {[%clk 0:00:06]} 48. Rxg1 {[%clk 0:00:09]}  c4 {[%clk 0:00:07]} 49. Rf1 {[%clk 0:00:09]}  Ke6 {[%clk 0:00:08]} 50. Bg4+ {[%clk 0:00:09]}  Ke5 {[%clk 0:00:08]} 51. h5 {[%clk 0:00:10]}  Kd4 {[%clk 0:00:08]} 52. g6 {[%clk 0:00:11]}  c3 {[%clk 0:00:09]} 53. gxh7 {[%clk 0:00:10]}  c2+ {[%clk 0:00:10]} 54. Kxc2 {[%clk 0:00:10]}  Ke3 {[%clk 0:00:11]} 55. h8=Q {[%clk 0:00:10]}  Ke4 {[%clk 0:00:12]} 56. Qf6 {[%clk 0:00:10]}  Ke3 {[%clk 0:00:12]} 57. Qf3+ {[%clk 0:00:09]}  Kd4 {[%clk 0:00:12]} 58. Rd1+ {[%clk 0:00:10]}  Ke5 {[%clk 0:00:12]} 59. Qf5# {[%clk 0:00:10]} 1-0


[Site "https://www.chess.com"]

[Event "Titled Tuesday Blitz May 31 Early 2022"]
[White "Vovk, Orest"]
[Black "Livaic, Leon"]
[WhiteFideId "14113490"]
[BlackFideId "14531534"]
[WhiteElo "2203"]
[BlackElo "2540"]
[Result "1-0"]
[Round "07"]
[TimeControl "180+1"]
[Date "2022.05.31"]
[WhiteClock "0:00:44"]
[BlackClock "0:00:15"]

1. h4 {[%clk 0:02:55]}  d5 {[%clk 0:02:59]} 2. h5 {[%clk 0:02:55]}  e5 {[%clk 0:02:59]} 3. h6 {[%clk 0:02:55]}  Nxh6 {[%clk 0:02:59]} 4. d4 {[%clk 0:02:54]}  Nf5 {[%clk 0:02:27]} 5. dxe5 {[%clk 0:02:46]}  Nc6 {[%clk 0:02:27]} 6. e4 {[%clk 0:02:44]}  dxe4 {[%clk 0:02:25]} 7. Qxd8+ {[%clk 0:02:44]}  Nxd8 {[%clk 0:02:22]} 8. Nc3 {[%clk 0:02:43]}  Bb4 {[%clk 0:02:19]} 9. Ne2 {[%clk 0:02:33]}  e3 {[%clk 0:02:14]} 10. f4 {[%clk 0:02:29]}  Ne6 {[%clk 0:02:09]} 11. g4 {[%clk 0:02:23]}  Nfd4 {[%clk 0:02:08]} 12. Nxd4 {[%clk 0:02:21]}  Nxd4 {[%clk 0:02:09]} 13. Bd3 {[%clk 0:02:21]}  Bxg4 {[%clk 0:02:07]} 14. Bxe3 {[%clk 0:02:20]}  O-O-O {[%clk 0:02:02]} 15. Kf2 {[%clk 0:02:04]}  Bxc3 {[%clk 0:01:30]} 16. bxc3 {[%clk 0:02:02]}  Nf5 {[%clk 0:01:30]} 17. Bxa7 {[%clk 0:01:48]}  Rxd3 {[%clk 0:01:30]} 18. cxd3 {[%clk 0:01:45]}  b6 {[%clk 0:01:31]} 19. Rag1 {[%clk 0:01:40]}  Kb7 {[%clk 0:00:44]} 20. Rxg4 {[%clk 0:01:33]}  Kxa7 {[%clk 0:00:42]} 21. Rg5 {[%clk 0:01:26]}  g6 {[%clk 0:00:43]} 22. Rxf5 {[%clk 0:01:17]}  gxf5 {[%clk 0:00:44]} 23. Rh5 {[%clk 0:01:17]}  Rg8 {[%clk 0:00:23]} 24. Rxf5 {[%clk 0:01:05]}  Rg7 {[%clk 0:00:23]} 25. Rg5 {[%clk 0:01:01]}  Rg6 {[%clk 0:00:14]} 26. Rxg6 {[%clk 0:00:56]}  hxg6 {[%clk 0:00:15]} 27. Kf3 {[%clk 0:00:56]}  Kb7 {[%clk 0:00:12]} 28. Kg4 {[%clk 0:00:49]}  Kc6 {[%clk 0:00:13]} 29. Kg5 {[%clk 0:00:48]}  Kd7 {[%clk 0:00:13]} 30. Kf6 {[%clk 0:00:49]}  Ke8 {[%clk 0:00:14]} 31. e6 {[%clk 0:00:43]}  fxe6 {[%clk 0:00:15]} 32. Kxe6 {[%clk 0:00:44]} 1-0


[Site "https://www.chess.com"]

[Event "Titled Tuesday Blitz May 31 Early 2022"]
[White "Yuan, Qingyu"]
[Black "Priasmoro, Novendra"]
[WhiteFideId "8609772"]
[BlackFideId "7105029"]
[WhiteElo "2359"]
[BlackElo "2309"]
[Result "0-1"]
[Round "07"]
[TimeControl "180+1"]
[Date "2022.05.31"]
[WhiteClock "0:00:01"]
[BlackClock "0:00:03"]

1. e4 {[%clk 0:03:00]}  e5 {[%clk 0:02:59]} 2. Nf3 {[%clk 0:03:00]}  Nc6 {[%clk 0:03:00]} 3. Bc4 {[%clk 0:03:00]}  Nf6 {[%clk 0:03:00]} 4. d3 {[%clk 0:03:01]}  Be7 {[%clk 0:03:00]} 5. O-O {[%clk 0:03:01]}  O-O {[%clk 0:03:01]} 6. Re1 {[%clk 0:03:01]}  d6 {[%clk 0:02:59]} 7. a3 {[%clk 0:03:02]}  Kh8 {[%clk 0:02:59]} 8. Nc3 {[%clk 0:02:55]}  Ng8 {[%clk 0:02:58]} 9. d4 {[%clk 0:02:42]}  Bg4 {[%clk 0:02:55]} 10. dxe5 {[%clk 0:02:33]}  Nxe5 {[%clk 0:02:54]} 11. Be2 {[%clk 0:02:32]}  Bxf3 {[%clk 0:02:41]} 12. Bxf3 {[%clk 0:02:27]}  Bg5 {[%clk 0:02:37]} 13. Be2 {[%clk 0:02:27]}  Bxc1 {[%clk 0:02:32]} 14. Qxc1 {[%clk 0:02:28]}  f5 {[%clk 0:02:27]} 15. f4 {[%clk 0:02:13]}  Ng6 {[%clk 0:02:20]} 16. exf5 {[%clk 0:02:10]}  Rxf5 {[%clk 0:02:21]} 17. Bd3 {[%clk 0:02:10]}  Rf8 {[%clk 0:02:13]} 18. g3 {[%clk 0:02:03]}  Nf6 {[%clk 0:01:57]} 19. Qd2 {[%clk 0:02:00]}  d5 {[%clk 0:01:54]} 20. Bxg6 {[%clk 0:01:51]}  hxg6 {[%clk 0:01:54]} 21. Qd3 {[%clk 0:01:48]}  Kh7 {[%clk 0:01:52]} 22. Re5 {[%clk 0:01:47]}  c6 {[%clk 0:01:47]} 23. Rae1 {[%clk 0:01:41]}  Qb6+ {[%clk 0:01:35]} 24. Kg2 {[%clk 0:01:34]}  Ng4 {[%clk 0:01:35]} 25. Rh5+ {[%clk 0:00:42]}  Kg8 {[%clk 0:01:33]} 26. Qxg6 {[%clk 0:00:43]}  Qf2+ {[%clk 0:01:27]} 27. Kh3 {[%clk 0:00:43]}  Qxe1 {[%clk 0:01:03]} 28. Kxg4 {[%clk 0:00:41]}  Rf6 {[%clk 0:01:00]} 29. Qh7+ {[%clk 0:00:37]}  Kf7 {[%clk 0:01:00]} 30. Rg5 {[%clk 0:00:36]}  Rg8 {[%clk 0:00:52]} 31. Re5 {[%clk 0:00:26]}  Qf2 {[%clk 0:00:37]} 32. Qh5+ {[%clk 0:00:18]}  g6 {[%clk 0:00:22]} 33. Qh7+ {[%clk 0:00:18]}  Rg7 {[%clk 0:00:21]} 34. Re7+ {[%clk 0:00:13]}  Kxe7 {[%clk 0:00:22]} 35. Qxg7+ {[%clk 0:00:14]}  Rf7 {[%clk 0:00:15]} 36. Qe5+ {[%clk 0:00:12]}  Kd7 {[%clk 0:00:15]} 37. Qb8 {[%clk 0:00:12]}  Qb6 {[%clk 0:00:10]} 38. Na4 {[%clk 0:00:09]}  Qb5 {[%clk 0:00:03]} 39. b3 {[%clk 0:00:03]}  Qe2+ {[%clk 0:00:03]} 40. Kg5 {[%clk 0:00:01]}  Qh5# {[%clk 0:00:03]} 0-1


[Site "https://www.chess.com"]

[Event "Titled Tuesday Blitz May 31 Early 2022"]
[White "Zhigalko, Sergei"]
[Black "Xu, Yi"]
[WhiteFideId "13502956"]
[BlackFideId "8605564"]
[WhiteElo "2662"]
[BlackElo "2471"]
[Result "1-0"]
[Round "07"]
[TimeControl "180+1"]
[Date "2022.05.31"]
[WhiteClock "0:01:26"]
[BlackClock "0:01:22"]

1. e4 {[%clk 0:03:00]}  c5 {[%clk 0:02:58]} 2. c3 {[%clk 0:03:00]}  Nf6 {[%clk 0:02:58]} 3. e5 {[%clk 0:03:00]}  Nd5 {[%clk 0:02:58]} 4. Nf3 {[%clk 0:03:01]}  Nc6 {[%clk 0:02:57]} 5. Bc4 {[%clk 0:03:01]}  Nb6 {[%clk 0:02:56]} 6. Bb3 {[%clk 0:03:01]}  d5 {[%clk 0:02:57]} 7. exd6 {[%clk 0:03:01]}  Qxd6 {[%clk 0:02:56]} 8. O-O {[%clk 0:03:01]}  Bg4 {[%clk 0:02:56]} 9. Bxf7+ {[%clk 0:03:00]}  Kxf7 {[%clk 0:02:32]} 10. Ng5+ {[%clk 0:02:59]}  Ke8 {[%clk 0:02:29]} 11. Qxg4 {[%clk 0:03:00]}  Ne5 {[%clk 0:02:28]} 12. Qe4 {[%clk 0:02:26]}  h6 {[%clk 0:02:22]} 13. d4 {[%clk 0:02:05]}  cxd4 {[%clk 0:02:15]} 14. cxd4 {[%clk 0:01:57]}  Ng4 {[%clk 0:01:55]} 15. Nf3 {[%clk 0:01:46]}  h5 {[%clk 0:01:28]} 16. h3 {[%clk 0:01:39]}  Nf6 {[%clk 0:01:24]} 17. Qg6+ {[%clk 0:01:39]}  Kd8 {[%clk 0:01:22]} 18. Ng5 {[%clk 0:01:26]} 1-0


[Site "https://www.chess.com"]

[Event "Titled Tuesday Blitz May 31 Early 2022"]
[White "Agasarov, Benik"]
[Black "Riehle, Marco"]
[WhiteFideId "13314823"]
[BlackFideId "12904392"]
[WhiteElo "2597"]
[BlackElo "2462"]
[Result "1-0"]
[Round "08"]
[TimeControl "180+1"]
[Date "2022.06.01"]
[WhiteClock "0:00:10"]
[BlackClock "0:00:15"]

1. d4 {[%clk 0:02:59]}  e6 {[%clk 0:02:59]} 2. c4 {[%clk 0:02:57]}  d5 {[%clk 0:02:59]} 3. Nc3 {[%clk 0:02:57]}  c5 {[%clk 0:02:58]} 4. cxd5 {[%clk 0:02:54]}  cxd4 {[%clk 0:02:58]} 5. Qxd4 {[%clk 0:02:53]}  Nc6 {[%clk 0:02:57]} 6. Qd1 {[%clk 0:02:42]}  exd5 {[%clk 0:02:58]} 7. Qxd5 {[%clk 0:02:42]}  Be6 {[%clk 0:02:58]} 8. Qb5 {[%clk 0:02:31]}  a6 {[%clk 0:02:56]} 9. Qa4 {[%clk 0:02:05]}  b5 {[%clk 0:02:54]} 10. Qe4 {[%clk 0:02:04]}  Rc8 {[%clk 0:02:52]} 11. Nf3 {[%clk 0:02:01]}  Nf6 {[%clk 0:02:51]} 12. Qb1 {[%clk 0:02:01]}  b4 {[%clk 0:02:48]} 13. Nd1 {[%clk 0:01:51]}  Qd7 {[%clk 0:02:38]} 14. Ne3 {[%clk 0:01:44]}  Bc5 {[%clk 0:02:28]} 15. g3 {[%clk 0:01:38]}  b3 {[%clk 0:02:20]} 16. axb3 {[%clk 0:01:31]}  O-O {[%clk 0:02:16]} 17. Bg2 {[%clk 0:01:29]}  Bb4+ {[%clk 0:02:14]} 18. Bd2 {[%clk 0:01:27]}  Bxd2+ {[%clk 0:02:14]} 19. Nxd2 {[%clk 0:01:27]}  Nd4 {[%clk 0:02:14]} 20. Ndc4 {[%clk 0:01:22]}  Nxb3 {[%clk 0:02:05]} 21. Ra3 {[%clk 0:01:22]}  Qb5 {[%clk 0:01:59]} 22. Qd3 {[%clk 0:00:47]}  Nc1 {[%clk 0:01:34]} 23. Qd2 {[%clk 0:00:42]}  Nxe2 {[%clk 0:01:31]} 24. Qxe2 {[%clk 0:00:26]}  Bxc4 {[%clk 0:01:28]} 25. Nxc4 {[%clk 0:00:24]}  Rfe8 {[%clk 0:01:22]} 26. Re3 {[%clk 0:00:24]}  Rxe3 {[%clk 0:01:15]} 27. Nxe3 {[%clk 0:00:20]}  Rc1+ {[%clk 0:01:08]} 28. Nd1 {[%clk 0:00:20]}  Qb4+ {[%clk 0:00:57]} 29. Qd2 {[%clk 0:00:20]}  Qe7+ {[%clk 0:00:58]} 30. Qe3 {[%clk 0:00:17]}  Qb4+ {[%clk 0:00:50]} 31. Qd2 {[%clk 0:00:13]}  Qe7+ {[%clk 0:00:49]} 32. Kf1 {[%clk 0:00:12]}  Rc8 {[%clk 0:00:46]} 33. Bf3 {[%clk 0:00:12]}  Rd8 {[%clk 0:00:41]} 34. Qe2 {[%clk 0:00:13]}  Qd7 {[%clk 0:00:40]} 35. Kg2 {[%clk 0:00:13]}  Re8 {[%clk 0:00:38]} 36. Ne3 {[%clk 0:00:13]}  g5 {[%clk 0:00:33]} 37. Qxa6 {[%clk 0:00:11]}  Kg7 {[%clk 0:00:32]} 38. Bc6 {[%clk 0:00:11]}  Qe6 {[%clk 0:00:28]} 39. Qc4 {[%clk 0:00:07]}  Qxc4 {[%clk 0:00:28]} 40. Nxc4 {[%clk 0:00:08]}  Re2 {[%clk 0:00:28]} 41. Bf3 {[%clk 0:00:07]}  Rc2 {[%clk 0:00:28]} 42. b3 {[%clk 0:00:07]}  g4 {[%clk 0:00:28]} 43. Bd1 {[%clk 0:00:07]}  Rc1 {[%clk 0:00:26]} 44. Ne3 {[%clk 0:00:07]}  h5 {[%clk 0:00:25]} 45. Nf5+ {[%clk 0:00:07]}  Kf8 {[%clk 0:00:22]} 46. Nd4 {[%clk 0:00:08]}  Rc3 {[%clk 0:00:21]} 47. Bc2 {[%clk 0:00:08]}  Nd5 {[%clk 0:00:19]} 48. Rd1 {[%clk 0:00:08]}  Nb4 {[%clk 0:00:19]} 49. Rd2 {[%clk 0:00:08]}  Kg7 {[%clk 0:00:18]} 50. Be4 {[%clk 0:00:08]}  Kf6 {[%clk 0:00:17]} 51. Re2 {[%clk 0:00:06]}  Kg7 {[%clk 0:00:15]} 52. Nf5+ {[%clk 0:00:06]}  Kf6 {[%clk 0:00:15]} 53. Ne3 {[%clk 0:00:06]}  Rc1 {[%clk 0:00:13]} 54. Nd5+ {[%clk 0:00:06]}  Nxd5 {[%clk 0:00:13]} 55. Bxd5 {[%clk 0:00:07]}  Rb1 {[%clk 0:00:14]} 56. Bc4 {[%clk 0:00:07]}  Kg5 {[%clk 0:00:14]} 57. Re5+ {[%clk 0:00:07]}  f5 {[%clk 0:00:15]} 58. Be6 {[%clk 0:00:07]}  Kf6 {[%clk 0:00:15]} 59. Bxf5 {[%clk 0:00:07]}  Rxb3 {[%clk 0:00:13]} 60. Rc5 {[%clk 0:00:07]}  Rb4 {[%clk 0:00:13]} 61. Bd3 {[%clk 0:00:07]}  h4 {[%clk 0:00:13]} 62. gxh4 {[%clk 0:00:07]}  Rd4 {[%clk 0:00:13]} 63. Be2 {[%clk 0:00:07]}  Re4 {[%clk 0:00:12]} 64. Kf1 {[%clk 0:00:05]}  Rb4 {[%clk 0:00:12]} 65. Rc4 {[%clk 0:00:06]}  Rb1+ {[%clk 0:00:12]} 66. Kg2 {[%clk 0:00:06]}  Rb2 {[%clk 0:00:12]} 67. Bxg4 {[%clk 0:00:07]}  Kg7 {[%clk 0:00:13]} 68. Rf4 {[%clk 0:00:07]}  Kh6 {[%clk 0:00:13]} 69. Kg3 {[%clk 0:00:07]}  Rb3+ {[%clk 0:00:13]} 70. Bf3 {[%clk 0:00:08]}  Rb8 {[%clk 0:00:14]} 71. Rf6+ {[%clk 0:00:08]}  Kg7 {[%clk 0:00:14]} 72. Rf5 {[%clk 0:00:08]}  Kh7 {[%clk 0:00:14]} 73. h5 {[%clk 0:00:09]}  Kh6 {[%clk 0:00:14]} 74. Rf6+ {[%clk 0:00:09]}  Kg5 {[%clk 0:00:15]} 75. Rg6+ {[%clk 0:00:09]}  Kf5 {[%clk 0:00:16]} 76. Bg4+ {[%clk 0:00:09]}  Ke5 {[%clk 0:00:16]} 77. f4+ {[%clk 0:00:10]}  Ke4 {[%clk 0:00:16]} 78. Re6+ {[%clk 0:00:10]}  Kd5 {[%clk 0:00:16]} 79. Re5+ {[%clk 0:00:11]}  Kd6 {[%clk 0:00:16]} 80. Kh4 {[%clk 0:00:11]}  Rh8 {[%clk 0:00:17]} 81. Bf5 {[%clk 0:00:10]}  Rf8 {[%clk 0:00:16]} 82. Kg5 {[%clk 0:00:10]}  Rg8+ {[%clk 0:00:16]} 83. Bg6 {[%clk 0:00:11]}  Rb8 {[%clk 0:00:16]} 84. h6 {[%clk 0:00:11]}  Rb2 {[%clk 0:00:16]} 85. h7 {[%clk 0:00:11]}  Rxh2 {[%clk 0:00:16]} 86. Kf6 {[%clk 0:00:11]}  Rh4 {[%clk 0:00:15]} 87. Rh5 {[%clk 0:00:10]}  Rxf4+ {[%clk 0:00:15]} 88. Kg5 {[%clk 0:00:11]}  Rb4 {[%clk 0:00:13]} 89. h8=Q {[%clk 0:00:11]}  Rb6 {[%clk 0:00:14]} 90. Qf6+ {[%clk 0:00:10]}  Kc7 {[%clk 0:00:15]} 91. Rh7+ {[%clk 0:00:10]}  Kc8 {[%clk 0:00:15]} 92. Qf8# {[%clk 0:00:10]} 1-0


[Site "https://www.chess.com"]

[Event "Titled Tuesday Blitz May 31 Early 2022"]
[White "Aradhya, Garg"]
[Black "Ambartsumova, Karina"]
[WhiteFideId "25006746"]
[BlackFideId "4166299"]
[WhiteElo "2169"]
[BlackElo "2262"]
[Result "1-0"]
[Round "08"]
[TimeControl "180+1"]
[Date "2022.06.01"]
[WhiteClock "0:01:05"]
[BlackClock "0:00:09"]

1. d4 {[%clk 0:03:00]}  Nf6 {[%clk 0:02:59]} 2. Nf3 {[%clk 0:02:54]}  g6 {[%clk 0:02:59]} 3. g3 {[%clk 0:02:53]}  Bg7 {[%clk 0:02:59]} 4. Bg2 {[%clk 0:02:53]}  O-O {[%clk 0:03:00]} 5. O-O {[%clk 0:02:53]}  d6 {[%clk 0:03:01]} 6. Nc3 {[%clk 0:02:52]}  Nbd7 {[%clk 0:02:57]} 7. a4 {[%clk 0:02:52]}  e5 {[%clk 0:02:53]} 8. dxe5 {[%clk 0:02:51]}  dxe5 {[%clk 0:02:53]} 9. a5 {[%clk 0:02:51]}  c6 {[%clk 0:02:47]} 10. Be3 {[%clk 0:02:51]}  Qc7 {[%clk 0:02:45]} 11. Qd3 {[%clk 0:02:33]}  Re8 {[%clk 0:02:32]} 12. Nd2 {[%clk 0:02:24]}  Bf8 {[%clk 0:02:18]} 13. Nde4 {[%clk 0:01:53]}  Nxe4 {[%clk 0:02:04]} 14. Nxe4 {[%clk 0:01:48]}  f5 {[%clk 0:01:47]} 15. Qc4+ {[%clk 0:01:47]}  Kg7 {[%clk 0:01:44]} 16. Nc5 {[%clk 0:01:38]}  Nxc5 {[%clk 0:01:14]} 17. Bxc5 {[%clk 0:01:39]}  Bxc5 {[%clk 0:00:47]} 18. Qxc5 {[%clk 0:01:40]}  a6 {[%clk 0:00:46]} 19. Rfd1 {[%clk 0:01:39]}  Be6 {[%clk 0:00:44]} 20. Rd6 {[%clk 0:01:37]}  Bf7 {[%clk 0:00:36]} 21. Rad1 {[%clk 0:01:35]}  Re7 {[%clk 0:00:35]} 22. e4 {[%clk 0:01:28]}  fxe4 {[%clk 0:00:20]} 23. Bxe4 {[%clk 0:01:28]}  Rf8 {[%clk 0:00:20]} 24. b4 {[%clk 0:01:23]}  Be8 {[%clk 0:00:20]} 25. Rd8 {[%clk 0:01:11]}  Bd7 {[%clk 0:00:18]} 26. Rxf8 {[%clk 0:01:09]}  Kxf8 {[%clk 0:00:19]} 27. Rd6 {[%clk 0:01:08]}  Kg7 {[%clk 0:00:18]} 28. Rxg6+ {[%clk 0:01:06]}  hxg6 {[%clk 0:00:16]} 29. Qxe7+ {[%clk 0:01:06]}  Kg8 {[%clk 0:00:09]} 30. Bxg6 {[%clk 0:01:05]} 1-0


[Site "https://www.chess.com"]